Cogmind - Beta 14 @@@ ROGUE MODE // 2024.08.25 @ 06:04:48 Player: omnishade Result: Destroyed by G-47 Trooper with Particle Gun Performance ------------- Evolutions (3) 1500 Regions Visited (5) 1000 Robots Destroyed (43) 215 Value Destroyed (1231) 1231 Prototype IDs (5) 100 Alien Tech Used (0) 0 Bonus (198) 198 TOTAL SCORE: 4244 Bonus ------- High Alert Combat Kills 11 Entered Garrisons 200 Friendly Fire -13 Cogmind --------- Core Integrity 0/700 Matter 278/300 Energy 42/100 System Corruption 0% Temperature Warning (345) Movement Core (100) Ox1 Location -7/Garrison Parts ------- > --- POWER (2) -------- (None) > --- PROPULSION (5) --- (None) > --- UTILITY (4) ------ Transmission Jammer Advanced ECM Suite > --- WEAPON (2) ------- (None) > --- INVENTORY (5) ---- Improved Sensor Array Advanced Targeting Computer Component Analysis Suite Peak State ------------ > --- POWER ------------ Light Ion Engine Light Deuterium Engine > --- PROPULSION ------- VSS Leg Cooled Airjet Xenon Bombardment Thruster > --- UTILITY ---------- Advanced Weight Redist. System Advanced ECM Suite Hacking Suite System Shield > --- WEAPON ----------- Katana > --- INVENTORY -------- Improved Sensor Array Advanced Targeting Computer Transmission Jammer Dynamic Insulation System Minigun [Rating: 33] Favorites ----------- Power Ion Engine Engine Ion Engine Power Core Light Nuclear Core Propulsion Aluminum Leg Treads Light Treads Leg Aluminum Leg Hover Unit Cooled Airjet Flight Unit Xenon Bombardment Thruster Utility Scrap Shield Device Advanced Weight Redist. System Storage Small Storage Unit Processor Advanced Targeting Computer Hackware Hacking Suite Protection Scrap Shield Weapon Subdweller Machine Gun Energy Gun Particle Gun Ballistic Gun Subdweller Machine Gun Ballistic Cannon Battle Cannon Launcher Missile Launcher Slashing Weapon Katana Build | -11 -10 -10 -8 -7 -7 ------- Run | Yrd Mat Sub Mat Fac Gar Slots Evolved 6 | . . . 4 2 . Power 1 | . . . . 1 . Propulsion 3 | . . . 3 . . Utility 2 | . . . 1 1 . Weapon . | . . . . . . Parts Attached 80 | 6 15 17 28 13 1 Power 15 | 1 3 3 4 4 . Engine 11 | 1 2 2 2 4 . Core 4 | . 1 1 2 . . Reactor . | . . . . . . Propulsion 24 | 2 8 4 6 4 . Treads 2 | . . . 2 . . Leg 19 | 2 8 4 4 1 . Wheel . | . . . . . . Hover 1 | . . . . 1 . Flight 2 | . . . . 2 . Utility 16 | 1 2 3 7 3 . Device 6 | . 1 . 2 3 . Storage 2 | 1 . . 1 . . Processor 2 | . 1 . 1 . . Hackware 2 | . . . 2 . . Protection 4 | . . 3 1 . . Artifact . | . . . . . . Weapon 25 | 2 2 7 11 2 1 Energy Gun 6 | . . 1 3 1 1 Energy Cannon . | . . . . . . Ballistic Gun 13 | 2 2 6 3 . . Ballistic Cannon 1 | . . . 1 . . Launcher 4 | . . . 4 . . Special Weapon . | . . . . . . Impact Weapon . | . . . . . . Slashing Weapon 1 | . . . . 1 . Piercing Weapon . | . . . . . . Special Melee Weapon . | . . . . . . Unidentified Prototypes 3 | . . . 1 2 . Parts Lost 26 | . 1 3 10 4 8 Power 6 | . 1 . 2 1 2 Propulsion 8 | . . 1 3 2 2 Utility 7 | . . 2 2 1 2 Weapon 5 | . . . 3 . 2 Highest Loss Streak 8 | . 1 2 3 2 8 To Critical Strikes . | . . . . . . Average Slot Usage (%) 80 | . 89 84 81 65 60 Engine 10 | . 11 13 4 5 13 Treads 1 | . . . 4 5 . Leg 25 | . 27 27 34 11 6 Device 3 | . 8 . 4 7 21 Storage 1 | . 12 . 1 . . Processor 1 | . 1 . 3 . . Hackware 3 | . . . 3 14 6 Protection 7 | . . 12 4 3 . Ballistic Gun 19 | . 25 27 6 6 . Launcher 1 | . . . 7 . . Peak Build Rating 33 | 6 8 14 28 33 29 Average Rating 15 | 4 6 11 22 23 25 On Entrance 13 | . 6 7 14 22 29 Naked Turns . | . . . . . . Heaviest Build 34 | 14 15 31 34 14 16 Greatest Support 49 | 20 20 25 49 21 21 Greatest Overweight (x) 4 | 1 2 1 1 4 1 Average Overweight (x) . | . . . . . . Largest Inventory Capacity 8 | 8 8 5 8 5 5 Average Capacity 5 | 7 7 5 5 5 5 Most Carried 8 | 5 8 5 6 5 4 Average Carried 4 | 2 3 4 4 4 3 Final Capacity 8 | 8 5 5 5 5 5 Final Carried 5 | 2 4 5 3 4 3 Class Distribution -------------------- 45% | Subdweller-Mutant 29% | Mutant 18% | Hacker-Mutant 3% | Infiltrator-Mutant Dominant Class ---------------- Mutant | -10/Materials Subdweller-Mutant | -10/Subcaves Mutant | -8/Materials Hacker-Mutant | -7/Factory Infiltrator-Mutant | -7/Garrison Resources | -11 -10 -10 -8 -7 -7 ----------- Run | Yrd Mat Sub Mat Fac Gar Matter Collected 1472 | 232 231 367 288 322 32 Remotely 55 | . . . 55 . . Salvage Created 1370 | . 220 225 560 333 32 Parts 86 | . 21 17 32 15 1 Haulers Intercepted . | . . . . . . Recyclers Shooed 2 | . . . 1 1 . Parts Field Recycled . | . . . . . . Retrieved Matter . | . . . . . . Parts Self-Destructed . | . . . . . . Prevented . | . . . . . . Kills | -11 -10 -10 -8 -7 -7 ------- Run | Yrd Mat Sub Mat Fac Gar Combat Hostiles Destroyed 26 | . 4 7 13 1 1 Melee 1 | . . . . 1 . Guns 16 | . 4 7 4 . 1 AOE 9 | . . . 9 . . Classes Destroyed 10 | . 3 1 6 . . Worker 3 | . . . 2 1 . Builder 4 | . 1 . 1 2 . Recycler 4 | . . . 1 3 . Operator 1 | . . . 1 . . Watcher 5 | . 2 . 3 . . Swarmer 3 | . . . 3 . . Grunt 9 | . 4 . 4 . 1 Sentry 6 | . . . 5 1 . Hunter 1 | . . . 1 . . Subdweller 7 | . . 7 . . . Best Kill Streak 5 | . 3 2 5 4 1 Combat Bots Only 3 | . 2 2 3 1 1 Max Kills in Single Turn 4 | . 1 1 4 1 1 Gunslinging . | . . . . . . Exploded 3 | . . . 3 . . Melee 1 | . . . . 1 . Uniques/NPCs Destroyed . | . . . . . . Combat | -11 -10 -10 -8 -7 -7 -------- Run | Yrd Mat Sub Mat Fac Gar Hostile Shots Fired 374 | . 42 60 84 132 56 Missed 124 | . 11 22 18 58 15 Damage Taken 4447 | . 393 1070 1324 967 693 Core 1114 | . 52 82 280 458 242 Absorbed by Shields 45 | . . . 40 . 5 Regen/Repaired (Parts) 64 | . . . . 64 . Core Remaining (%) 65 | 100 . 46 49 . . Volleys Fired 109 | . 30 36 34 . 9 Largest 2 | . 2 2 2 . 1 Hottest 115 | . 40 60 115 . 75 Shots Fired 180 | . 48 62 61 . 9 Gun 159 | . 48 62 40 . 9 Cannon . | . . . . . . Launcher 21 | . . . 21 . . Special . | . . . . . . Kinetic 124 | . 48 62 14 . . Thermal 23 | . . . 14 . 9 Explosive 18 | . . . 18 . . Electromagnetic 15 | . . . 15 . . Robot Hit Streak 10 | . 10 9 10 . 6 Robot Miss Streak 6 | . 3 3 6 . 4 Penetration Max . | . . . . . . Secondary Targets . | . . . . . . Shots Hit Robots 135 | . 33 40 38 15 9 Core Hits 76 | . 13 13 35 4 11 Critical Kills . | . . . . . . Critical Parts Destroyed 1 | . . . 1 . . Critical Strikes 3 | . . 1 2 . . Burn 1 | . . . 1 . . Destroy 2 | . . 1 1 . . Melee Attacks 18 | . . . . 18 . Impact . | . . . . . . Slashing 18 | . . . . 18 . Piercing . | . . . . . . Sneak Attacks 6 | . . . . 6 . Combat Hostiles . | . . . . . . Follow-up Attacks . | . . . . . . Damage Inflicted 4056 | . 417 777 1989 674 199 Guns 1902 | . 417 777 509 . 199 Cannons . | . . . . . . Explosions 1473 | . . . 1473 . . Melee 674 | . . . . 674 . Ramming 7 | . . . 7 . . Kinetic 1406 | . 417 777 212 . . Thermal 727 | . . . 528 . 199 Explosive 891 | . . . 891 . . Electromagnetic 351 | . . . 351 . . Impact . | . . . . . . Slashing 674 | . . . . 674 . Piercing . | . . . . . . Highest Corruption 7 | . . . 7 . . Average Corruption 5 | . . . 5 . . Corruption Purged . | . . . . . . Corruption Blocked . | . . . . . . Effects 20 | . . . 20 . . Message Errors 4 | . . . 4 . . Matter Fused 5 | . . . 5 . . Heat Flow Errors 3 | . . . 3 . . Energy Discharges 4 | . . . 4 . . Data Loss (minor) 3 | . . . 3 . . Weapon Failures 1 | . . . 1 . . Overload Shots . | . . . . . . Overflow Damage 280 | . . . 133 147 . Projectiles . | . . . . . . Explosions 133 | . . . 133 . . Melee 147 | . . . . 147 . Knockbacks . | . . . . . . Impact . | . . . . . . Kinetic . | . . . . . . Secondary . | . . . . . . Self-Inflicted Damage 66 | . . . 66 . . Shots 3 | . . . 3 . . Rammed . | . . . . . . Targets Rammed 1 | . . . 1 . . Kicked 1 | . . . 1 . . Crushed . | . . . . . . Highest Temperature 593 | . 20 . 593 18 355 Average Temperature 180 | . 7 . 195 18 185 Received Heat Transfer 1374 | . 231 132 417 156 438 Effects 20 | . . . 19 . 1 Shutdowns 4 | . . . 4 . . Energy Bleed 3 | . . . 2 . 1 Damage (minor) 2 | . . . 2 . . Damage (major) 10 | . . . 10 . . Damage (core) 1 | . . . 1 . . Siege Activations . | . . . . . . Robots Corrupted 1 | . . . 1 . . Combat Hostiles . | . . . . . . Parts Fried 4 | . . . 4 . . Impact Corruptions . | . . . . . . Robots Melted . | . . . . . . Combat Hostiles . | . . . . . . Parts Melted 3 | . . 1 2 . . Heat Transferred 817 | . . . 657 . 160 Parts Sabotaged . | . . . . . . Parts Stolen . | . . . . . . Parts Stripped . | . . . . . . Power Chain Reactions 1 | . . . 1 . . Alert | -11 -10 -10 -8 -7 -7 ------- Run | Yrd Mat Sub Mat Fac Gar Peak Influence 445 | . 137 . 445 152 105 Initial 97 | . . . . 97 10 Average 134 | . 55 . 245 85 62 Maximum Alert Level 2 | . . . 2 . . Low Security (%) 76 | 100 100 . 36 100 100 Level 1 15 | . . . 42 . . Level 2 8 | . . . 21 . . Level 3 . | . . . . . . Level 4 . | . . . . . . Level 5 . | . . . . . . High Security . | . . . . . . Max Security . | . . . . . . Squads Dispatched 7 | . 2 . 3 2 . Investigation 2 | . 1 . 1 . . Extermination 1 | . . . . 1 . Reinforcement 4 | . 1 . 2 1 . Assault . | . . . . . . Garrison . | . . . . . . Intercept . | . . . . . . Searches Triggered . | . . . . . . Construction Impeded . | . . . . . . Haulers Reinforced . | . . . . . . Active Scanning Responses . | . . . . . . Cargo Convoy Interrupts . | . . . . . . Stealth | -11 -10 -10 -8 -7 -7 --------- Run | Yrd Mat Sub Mat Fac Gar Distress Signals 1 | . . . 1 . . Communications Jammed . | . . . . . . Distress Signals . | . . . . . . Times Spotted 88 | . 15 15 31 13 14 Peak Tracking Total 9 | . 3 6 7 4 9 Tactical Retreats 15 | . 2 . 6 4 3 Traps | -11 -10 -10 -8 -7 -7 ------- Run | Yrd Mat Sub Mat Fac Gar Traps Triggered 11 | . 4 3 1 1 2 Indirectly . | . . . . . . Trap Hack Attempts . | . . . . . . Triggered . | . . . . . . Disarmed . | . . . . . . Reprogrammed . | . . . . . . Reused 1 | . . . 1 . . Traps Extracted . | . . . . . . Installed 1 | . . . 1 . . Triggered 1 | . . . 1 . . Most Traps Carried 1 | . . 1 1 . . Machines | -11 -10 -10 -8 -7 -7 ---------- Run | Yrd Mat Sub Mat Fac Gar Machines Disabled 3 | . . . 3 . . Max in Single Turn 2 | . . . 2 . . Machines Repaired . | . . . . . . Machines Dismantled . | . . . . . . Machines Sabotaged . | . . . . . . Overloaded Fab Kills . | . . . . . . Hacking | -11 -10 -10 -8 -7 -7 --------- Run | Yrd Mat Sub Mat Fac Gar Machines Accessed 11 | . 1 1 5 4 . Terminals 6 | . 1 . 4 1 . Fabricators . | . . . . . . Repair Stations 1 | . . . . 1 . Recycling Units 1 | . . . 1 . . Scanalyzers 1 | . . . . 1 . Garrison Access 1 | . . . . 1 . Total Hacks 27 | . 1 5 13 8 . Successful 21 | . 1 5 9 6 . Failed 6 | . . . 4 2 . Catastrophic 1 | . . . 1 . . Database Lockouts . | . . . . . . Manual 5 | . . 5 . . . Terminals 8 | . 1 . 5 2 . Fabricators . | . . . . . . Repair Stations 3 | . . . . 3 . Recycling Units 8 | . . . 8 . . Scanalyzers 2 | . . . . 2 . Garrison Access 1 | . . . . 1 . Terminal Hacks 9 | . 1 5 2 1 . Record 5 | . . 5 . . . Prototype ID Bank 1 | . 1 . . . . Open DSF 1 | . . . . 1 . Branch Access Points 1 | . . . 1 . . Unreport Threat 1 | . . . 1 . . Fabricator Hacks . | . . . . . . Repair Station Hacks 2 | . . . . 2 . Scan Component 1 | . . . . 1 . Repair 1 | . . . . 1 . Recycling Unit Hacks 7 | . . . 7 . . Recycle Component 3 | . . . 3 . . Process 2 | . . . 2 . . Report Inventory 1 | . . . 1 . . Retrieve Matter 1 | . . . 1 . . Scanalyzer 2 | . . . . 2 . Insert Component 1 | . . . . 1 . Analyze 1 | . . . . 1 . Garrison Access Hacks 1 | . . . . 1 . Unlock Access 1 | . . . . 1 . Unauthorized Hacks . | . . . . . . Terminals . | . . . . . . Fabricators . | . . . . . . Repair Stations . | . . . . . . Recycling Units . | . . . . . . Scanalyzers . | . . . . . . Garrison Access . | . . . . . . Data Cores Recovered . | . . . . . . Used . | . . . . . . Hacking Detections 5 | . 1 . 3 1 . Full Trace Events 1 | . . . 1 . . Feedback Events . | . . . . . . Feedback Blocked . | . . . . . . Robot Schematics Acquired . | . . . . . . Robots Built . | . . . . . . Authchips . | . . . . . . Time . | . . . . . . Total Robot Build Rating . | . . . . . . Part Schematics Acquired 1 | . . . . 1 . Parts Built . | . . . . . . Authchips . | . . . . . . Time . | . . . . . . Total Part Build Rating . | . . . . . . Parts Repaired 1 | . . . . 1 . Time 19 | . . . . 19 . Parts Recycled 3 | . . . 3 . . Recycled Matter 217 | . . . 217 . . Retrieved Matter . | . . . . . . Retrieved Components . | . . . . . . Parts Scanalyzed 1 | . . . . 1 . Part Schematics Acquired 1 | . . . . 1 . Parts Damaged . | . . . . . . Bothacking | -11 -10 -10 -8 -7 -7 ------------ Run | Yrd Mat Sub Mat Fac Gar Used RIF Installer . | . . . . . . Robots Hacked . | . . . . . . Non-combat . | . . . . . . Combat . | . . . . . . Robot Hacks Applied . | . . . . . . Relay Couplers Released 4 | . . . . 4 . Programmers 4 | . . . . 4 . Fabnet Peak Effective % . | . . . . . . Robots Rewired . | . . . . . . Allies Hacked . | . . . . . . Hacks Repelled . | . . . . . . Allies | -11 -10 -10 -8 -7 -7 -------- Run | Yrd Mat Sub Mat Fac Gar Total Allies . | . . . . . . Largest Group . | . . . . . . Highest-Rated Group . | . . . . . . Highest-Rated Ally . | . . . . . . Total Orders . | . . . . . . Ally Attacks . | . . . . . . Total Damage . | . . . . . . Kills . | . . . . . . Allies Corrupted . | . . . . . . Allies Melted . | . . . . . . Intel | -11 -10 -10 -8 -7 -7 ------- Run | Yrd Mat Sub Mat Fac Gar Robot Analysis Total . | . . . . . . Derelict Logs Recovered . | . . . . . . Drone Launches . | . . . . . . Drone Recoveries . | . . . . . . Exploration | -11 -10 -10 -8 -7 -7 ------------- Run | Yrd Mat Sub Mat Fac Gar Turns Passed 5502 | 67 648 2758 1008 894 127 Spaces Moved 3538 | 52 374 1421 623 947 121 Core 20 | 13 1 . . 1 5 Treads 1 | . . . 1 . . Legs 2850 | 39 373 1421 622 358 37 Wheels . | . . . . . . Hover . | . . . . . . Flight 667 | . . . . 588 79 Fastest Speed 40 | 50 120 120 90 40 50 Average Speed 133 | 103 120 182 128 80 65 Slowest Speed 250 | 120 150 190 190 250 180 Overloaded Moves . | . . . . . . Propulsion Burnouts . | . . . . . . Robots Hopped 2 | . . . . 2 . Cave-ins Triggered 1 | . . . 1 . . Exploration Rate (%) 34 | 4 50 66 36 25 26 Regions Visited 5 Branch Regions 1 Pre-discovered Areas . | . . . . . . Known Exits Taken 3 | . 1 1 . 1 . Unknown Exits Taken 2 | 1 . . 1 . . Scrap Searched 1 | . . 1 . . . Spaces Dug . | . . . . . . Terrain Destroyed 128 | . . . 128 . . Melee . | . . . . . . Projectile . | . . . . . . AOE 128 | . . . 128 . . Terrain Rammed . | . . . . . . Walls Destroyed . | . . . . . . Machines Disabled . | . . . . . . Actions | -11 -10 -10 -8 -7 -7 --------- Run | Yrd Mat Sub Mat Fac Gar Total 4092 | 64 525 1523 765 1056 159 Wait 181 | . 85 10 44 36 6 Move 3527 | 51 373 1420 622 942 119 Hop 2 | . . . . 2 . Pick Up 72 | 7 17 16 19 13 . Fast Attach 14 | 1 . . 11 2 . Attach 41 | 5 10 9 8 8 1 Detach 6 | . . . 2 4 . Swap 25 | . 5 8 9 3 . Drop 42 | . 5 13 14 10 . Fire 109 | . 30 36 34 . 9 Melee 18 | . . . . 18 . Ram . | . . . . . . Kick 1 | . . . 1 . . Crush . | . . . . . . Escape Stasis 42 | . . . . 18 24 Rewire . | . . . . . . Trap 1 | . . . 1 . . Miscellaneous 11 | . . 11 . . . Route ------- -11/Scrapyard -10/Materials (discovered 2 exits: [*Mat] / *Sub) -10/Subcaves (discovered 3 exits: *Mat x2 / Rec) -8/Materials -7/Factory (discovered 2 exits: [*Low] / Gar) -7/Garrison (discovered 1 exit: [*Fac]) History --------- Turn | Location | Event 28 | -11/Scrapyard | Discovered new exit (range 16) 68 | -11/Scrapyard | Entered Materials 168 | -10/Materials | Discovered new exit (range 3) 328 | -10/Materials | Build established: Mutant 701 | -10/Materials | Discovered new exit (range 6) 715 | -10/Materials | Identified exit to Subcaves 716 | -10/Materials | Entered Subcaves 800 | -10/Subcaves | Ambushed by swarm of Subdwellers 1250 | -10/Subcaves | Build established: Subdweller-Mutant 1317 | -10/Subcaves | A swath of the cavern ceiling suddenly collapsed 1438 | -10/Subcaves | A swath of the cavern ceiling suddenly collapsed 2429 | -10/Subcaves | Visited Clippyterm 2435 | -10/Subcaves | Identified exit to Recycling 2435 | -10/Subcaves | Identified exit to Materials 2435 | -10/Subcaves | Learned Factory fabricator intel 3060 | -10/Subcaves | Core integrity fell below 50% 3474 | -10/Subcaves | Entered Materials 3474 | -8/Materials | Evolved 4 slots: Propulsion x3, Utility x1 3664 | -8/Materials | Lost 3 parts (1n1u1w) 3726 | -8/Materials | Crushed by falling debris 3794 | -8/Materials | Build established: Mutant 4071 | -8/Materials | Lost 3 parts (2n1w) 4232 | -8/Materials | Discovered new exit (range 15) 4461 | -8/Materials | Core integrity fell below 50% 4482 | -8/Materials | Entered Factory 4482 | -7/Factory | Evolved 2 slots: Power x1, Utility x1 4483 | -7/Factory | Loaded intel: 6 fabricator locations 4602 | -7/Factory | Build established: Hacker-Mutant 4944 | -7/Factory | Core integrity fell below 50% 5088 | -7/Factory | Discovered new exit (range 16) 5106 | -7/Factory | Identified exit to Garrison 5204 | -7/Factory | Repaired VSS Leg 5376 | -7/Factory | Entered Garrison 5388 | -7/Garrison | Triggered checkpoint 5468 | -7/Garrison | Discovered new exit (range 10) 5476 | -7/Garrison | Attempted to access garrison exit controls, blocked by remote lockdown 5495 | -7/Garrison | Core integrity fell below 20% 5503 | -7/Garrison | Destroyed by G-47 Trooper with Particle Gun Last Messages --------------- Stasis field depleted. C-30 ARC bursts open, deploying its payload. G-50 Soldier unfolds itself. G-47 Trooper unfolds itself. EXIT=FOUND Katana destroyed. Adv. Weight Redist. System destroyed. Attempting to access garrison exit controls... Remote lockdown engaged. Lgt. Deuterium Engine destroyed. Overheating: Energy bleed (-23). VSS Leg destroyed. Critical hit (Burn: +37). Lgt. Ion Engine destroyed. Critical hit (Burn: +37). G-47 Trooper destroyed. Imp. Spread Laser destroyed. Hacking Suite destroyed. Acquired 32 matter. Critical hit (Burn: +37). Map ----- +----------------------------------------------------+ | ??# #?????????????????# #???#?????????????????? | | ??# #?????????????????# #?? #?????????????????? | | ??# #?????????????????# #?? #?????????????????? | | ??# #?????????????????# #?#/##????????????????? | | ??# #?????????????????# #?"%"#????????????????? | | ??# #?????????????????# ## " ##### #????????? | | ### #?????????????????# #??????? | | #?????????????????# #??????? | | #?????????????????# ##############????????? | | ######?????????????????# #?????????????????????? | | ???????????????????????# #?????????????????????? | | ???????????????????????# #?????????????????????? | | ???????????????????????# #?????????????????????? | | ???????????????????????# #?????????????????????? | | ???????????????????????# #?????????????????????? | | ???????????????????????# #?????????????????????? | | ???????????????????????# #?????????????????????? | | ???????????????????????# #?????????????????????? | | ???????????????????????# #?????????????????????? | | ???????????????????????# #?????????????????????? | | ???????????????????????# #?????????????????????? | | ???????????????????????# #?????????????????????? | | ???????????????????????# #?????????????????????? | | ???????????????????????# #?????????????????????? | | ???????????????????????# #?????????????????????? | | ?????????????#######???# @ #?????????????????????? | | ???????????# ## #?????????????????????? | | ???????????# ! gggg ###???????????????????? | | ???????????# ## g !#???????????????????? | | ???????????? ! ??# gg #???????????????????? | | ???????????# ???# #???????????????????? | | ???????????? !!* ????#######???????????????????? | | ???????????? ???????????????????????????????? | | ?????????????? ????????????????????????????????? | | ????????????? ! ?????????????????????????????????? | | ?????????????????????????????????????????????????? | | ?????????????????????????????????????????????????? | | ?????????????????????????????????????????????????? | | ?????????????????????????????????????????????????? | | ?????????????????????????????????????????????????? | | ?????????????????????????????????????????????????? | | ?????????????????????????????????????????????????? | | | | | | | | | | | | | | | | | +----------------------------------------------------+ Best States ------------- Heat Dissipation 34 Energy Generation 19 Energy Capacity 250 Matter Stores 300 Matter Capacity 300 Sight Range 16 Robot Scan Range 14 Terrain Scan Density 10 Jamming Range 12 Additional Mass Support 9 Armor Coverage 800 Evasion (%) 62 Targeting Accuracy 8 Offensive Hacking 10 Defensive Hacking 10 Item Schematics ----------------- Xenon Bombardment Thruster | -7/Factory | Scanalyzed Robot Schematics ------------------ None Fabricated ------------ Nothing Alien Tech Used ----------------- None Achievements -------------- Unlikely Earthworm Challenges ------------ None Game ------ Seed PoweredWeldingShredder Manual? 0 Play Time 00:53:13 Cumulative 5.2 hours Start 2024.08.25 @ 05:12:46 End 2024.08.25 @ 06:04:48 Sessions 1 Manual Loads 0 Difficulty Rogue Special Mode None Game No. 7 Rogue 7 Adventurer 0 Explorer 0 Win Type - Total 0 Types 0/0/0/0/0/0/0/0/0 Lore% 1 Gallery% 12 Achievement% 10 Wizard Run 0 Options --------- Layout 1 ASCII 0 Keyboard 0 Movement Mouse Keybinds 0 Fullscreen 1 Font 32/SmallcapsGlow Map View 50x35 Zoom Use 0% Tactical HUD 0 Map Filters NONE Filters NONE Steam 1 RUN: 97fd6ccf-c3f2-40b8-a1ed-beadcc228af3